fUST/lending_fUST_20240429
["ID","MTS","AMOUNT","RATE_DAILY","PERIOD"]
[324897478,1714403449979,-500.0,0.00046575,30]
[324897480,1714403449988,-500.0,0.00046575,30]
[324897483,1714403449999,-580.34,0.00046575,30]
[324897485,1714403450010,-283.62851853,0.00046575,30]
[324897487,1714403450019,-609.19,0.00046575,30]
[324897488,1714403450029,-500.0,0.00046575,30]
[324897491,1714403450039,-500.0,0.00046575,30]
[324897492,1714403450049,-500.0,0.00046575,30]
[324897494,1714403450058,-500.0,0.00046575,30]
[324897497,1714403450068,-500.0,0.00046575,30]
[324897498,1714403450077,-698.28,0.00046575,30]
[324897501,1714403450087,-254.98552436,0.00046575,30]
[324897502,1714403450096,-500.0,0.00046575,30]
[324897505,1714403450106,-500.0,0.00046575,30]
[324897506,1714403450115,-500.0,0.00046575,30]
[324897508,1714403450127,-593.74,0.00046575,30]
[324897511,1714403450136,-559.26598269,0.00046575,30]
[324897512,1714403450145,-500.0,0.00046575,30]
[324897514,1714403450155,-500.0,0.00046575,30]
[324897517,1714403450164,-517.52,0.00046575,30]
[324897519,1714403450174,-500.0,0.00046575,30]
[324897520,1714403450184,-500.0,0.00046575,30]
[324897522,1714403450193,-482.51402582,0.00046575,30]
[324897524,1714403450202,-500.0,0.00046575,30]
[324897526,1714403450212,-500.0,0.00046575,30]
[324897529,1714403450223,-500.0,0.00046575,30]
[324897531,1714403450232,-500.0,0.00046575,30]
[324897533,1714403450241,-580.52,0.00046575,30]
[324897535,1714403450250,-500.0,0.00046575,30]
[324897537,1714403450260,-500.0,0.00046575,30]
[324897538,1714403450270,-500.0,0.00046575,30]
[324897540,1714403450279,-500.0,0.00046575,30]
[324897542,1714403450288,-660.77,0.00046575,30]
[324897544,1714403450298,-603.91912185,0.00046575,30]
[324897547,1714403450308,-500.0,0.00046575,30]
[324897549,1714403450317,-500.02,0.00046575,30]
[324897551,1714403450327,-606.01796656,0.00046575,30]
[324897553,1714403450336,-500.0,0.00046575,30]
[324897555,1714403450344,-500.0,0.00046575,30]
[324897557,1714403450353,-624.28719997,0.00046575,30]
[324897559,1714403450363,-500.0,0.00046575,30]
[324897561,1714403450373,-507.32802336,0.00046575,30]
[324897563,1714403450382,-500.0,0.00046575,30]
[324897565,1714403450392,-500.0,0.00046575,30]
[324897567,1714403450401,-500.0,0.00046575,30]
[324897569,1714403450410,-500.0,0.00046575,30]
[324897571,1714403450419,-500.0,0.00046575,30]
[324897573,1714403450428,-500.0,0.00046575,30]
[324897575,1714403450437,-500.0,0.00046575,30]
[324897577,1714403450447,-500.0,0.00046575,30]
[324897579,1714403450456,-572.38,0.00046575,30]
[324897581,1714403450466,-500.0,0.00046575,30]
[324897583,1714403450475,-500.0,0.00046575,14]
[324897584,1714403450485,-500.0,0.00046575,30]
[324897586,1714403450494,-594.15,0.00046575,30]
[324897588,1714403450502,-500.0,0.00046575,30]
[324897590,1714403450512,-500.0,0.00046575,30]
[324897592,1714403450522,-500.0,0.00046575,30]
[324897594,1714403450531,-500.0,0.00046575,30]
[324897596,1714403450541,-500.0,0.00046575,30]
[324897598,1714403450550,-500.0,0.00046575,30]
[324897600,1714403450560,-500.0,0.00046575,30]
[324897602,1714403450570,-500.0,0.00046575,30]
[324897605,1714403450580,-500.0,0.00046575,30]
[324897606,1714403450589,-500.0,0.00046575,30]
[324897608,1714403450598,-500.0,0.00046575,30]
[324897611,1714403450608,-500.0,0.00046575,30]
[324897613,1714403450618,-500.0,0.00046575,30]
[324897614,1714403450628,-500.0,0.00046575,30]
[324897617,1714403450637,-500.0,0.00046575,30]
[324897619,1714403450647,-500.0,0.00046575,30]
[324897621,1714403450656,-500.0,0.00046575,30]
[324897622,1714403450665,-500.0,0.00046575,30]
[324897624,1714403450675,-957.76,0.00046575,30]
[324897635,1714403450766,-500.0,0.00046575,30]
[324897637,1714403450777,-500.0,0.00046575,30]
[324897639,1714403450786,-485.6655,0.00046575,30]
[324897641,1714403450796,-208.09824163,0.00046575,2]
[324897643,1714403450805,-500.0,0.00046575,30]
[324897645,1714403450814,-500.0,0.00046575,30]
[324897647,1714403450823,-500.0,0.00046575,30]
[324897649,1714403450833,-288.39032908,0.00046575,30]
[324897651,1714403450843,-881.98,0.00046575,30]
[324897653,1714403450852,-507.51907546,0.00046575,30]
[324897655,1714403450861,-500.0,0.00046575,30]
[324897657,1714403450870,-500.0,0.00046575,30]
[324897659,1714403450879,-500.0,0.00046575,30]
[324897661,1714403450888,-500.0,0.00046575,30]
[324897663,1714403450899,-500.0,0.00046575,30]
[324897665,1714403450908,-905.7,0.00046575,30]
[324897667,1714403450917,-500.0,0.00046575,30]
[324897669,1714403450926,-593.39466437,0.00046575,30]
[324897671,1714403450936,-500.0,0.00046575,30]
[324897673,1714403450945,-882.72,0.00046575,120]
[324897675,1714403450954,-500.0,0.00046575,30]
[324897677,1714403450964,-500.0,0.00046575,3]
[324897679,1714403450974,-500.0,0.00046575,30]
[324897681,1714403450985,-500.0,0.00046575,30]
[324897683,1714403450994,-500.0,0.00046575,30]
[324897684,1714403451004,-500.0,0.00046575,30]
[324897687,1714403451013,-500.0,0.00046575,30]
[324897689,1714403451024,-500.0,0.00046575,30]
[324897690,1714403451034,-500.0,0.00046575,30]
[324897692,1714403451043,-500.0,0.00046575,30]
[324897695,1714403451053,-500.0,0.00046575,30]
[324897697,1714403451063,-500.0,0.00046575,30]
[324897698,1714403451073,-500.0,0.00046575,30]
[324897700,1714403451082,-500.0,0.00046575,30]
[324897702,1714403451092,-500.0,0.00046575,30]
[324897704,1714403451101,-652.74,0.00046575,30]
[324897707,1714403451110,-500.0,0.00046575,30]
[324897708,1714403451119,-534.54,0.00046575,30]
[324897711,1714403451129,-500.0,0.00046575,30]
[324897713,1714403451138,-300.0,0.00046575,7]
[324897714,1714403451148,-500.0,0.00046575,30]
[324897717,1714403451157,-500.0,0.00046575,30]
[324897719,1714403451167,-500.0,0.00046575,30]
[324897720,1714403451176,-500.0,0.00046575,30]
[324897723,1714403451185,-500.0,0.00046575,30]
[324897725,1714403451195,-500.0,0.00046575,30]
[324897727,1714403451204,-500.0,0.00046575,2]
[324897729,1714403451213,-1249.99,0.00046575,30]
[324897731,1714403451223,-654.11,0.00046575,30]
[324897733,1714403451232,-500.0,0.00046575,30]
[324897735,1714403451242,-273.70222515,0.00046575,30]
[324897737,1714403451251,-500.0,0.00046575,2]
[324897739,1714403451261,-500.0,0.00046575,30]
[324897741,1714403451270,-527.42546665,0.00046575,30]
[324897743,1714403451280,-500.0,0.00046575,30]
[324897745,1714403451289,-500.0,0.00046575,30]
[324897747,1714403451298,-903.12,0.00046575,7]
[324897749,1714403451308,-500.0,0.00046575,30]
[324897751,1714403451317,-268.90242759,0.00046575,30]
[324897753,1714403451327,-500.0,0.00046575,30]
[324897755,1714403451336,-374.77976344,0.00046575,30]
[324897756,1714403451345,-500.0,0.00046575,30]
[324897758,1714403451355,-1203.71,0.00046575,30]
[324897761,1714403451365,-809.28,0.00046575,30]
[324897763,1714403451376,-500.0,0.00046575,30]
[324897765,1714403451385,-500.29,0.00046575,30]
[324897767,1714403451394,-500.0,0.00046575,30]
[324897769,1714403451403,-500.0,0.00046575,30]
[324897771,1714403451413,-500.0,0.00046575,30]
[324897773,1714403451423,-500.0,0.00046575,30]
[324897774,1714403451432,-500.0,0.00046575,30]
[324897776,1714403451443,-500.0,0.00046575,30]
[324897778,1714403451452,-500.0,0.00046575,30]
[324897781,1714403451462,-500.0,0.00046575,30]
[324897782,1714403451471,-500.0,0.00046575,30]
[324897785,1714403451480,-500.0,0.00046575,30]
[324897787,1714403451490,-500.0,0.00046575,30]
[324897788,1714403451500,-500.0,0.00046575,30]
[324897790,1714403451509,-500.0,0.00046575,30]
[324897792,1714403451518,-602.54,0.00046575,30]
[324897794,1714403451527,-500.0,0.00046575,30]
[324897796,1714403451537,-520.25,0.00046575,30]
[324897798,1714403451546,-500.0,0.00046575,30]
[324897801,1714403451557,-500.0,0.00046575,30]
[324897802,1714403451566,-1009.15,0.00046575,30]
[324897804,1714403451575,-500.0,0.00046575,30]
[324897806,1714403451585,-782.67,0.00046575,30]
[324897808,1714403451595,-500.0,0.00046575,30]
[324897811,1714403451604,-500.0,0.00046575,30]
[324897812,1714403451613,-500.0,0.00046575,30]
[324897814,1714403451626,-500.0,0.00046575,30]
[324897816,1714403451635,-500.0,0.00046575,30]
[324897819,1714403451645,-500.0,0.00046575,30]
[324897821,1714403451654,-519.15,0.00046575,30]
[324897823,1714403451662,-500.0,0.00046575,30]
[324897825,1714403451671,-615.64,0.00046575,30]
[324897826,1714403451681,-500.0,0.00046575,30]
[324897828,1714403451690,-500.0,0.00046575,30]
[324897831,1714403451699,-500.0,0.00046575,30]
[324897833,1714403451709,-500.0,0.00046575,30]
[324897834,1714403451718,-545.98981291,0.00046575,30]
[324897836,1714403451727,-500.0,0.00046575,30]
[324897838,1714403451737,-500.0,0.00046575,30]
[324897841,1714403451748,-306.74552407,0.00046575,30]
[324897842,1714403451758,-872.67,0.00046575,30]
[324897845,1714403451768,-498.84980081,0.00046575,30]
[324897846,1714403451777,-500.0,0.00046575,30]
[324897848,1714403451787,-500.0,0.00046575,30]
[324897851,1714403451798,-565.21859299,0.00046575,30]
[324897853,1714403451808,-500.0,0.00046575,30]
[324897855,1714403451817,-500.0,0.00046575,30]
[324897857,1714403451827,-500.0,0.00046575,30]
[324897859,1714403451837,-500.0,0.00046575,30]
[324897861,1714403451847,-600.73,0.00046575,30]
[324897863,1714403451856,-500.0,0.00046575,30]
[324897865,1714403451866,-500.0,0.00046575,30]
[324897866,1714403451877,-500.0,0.00046575,30]
[324897868,1714403451887,-502.86774339,0.00046575,30]
[324897871,1714403451897,-505.91,0.00046575,30]
[324897873,1714403451906,-500.0,0.00046575,30]
[324897874,1714403451916,-501.2,0.00046575,30]
[324897876,1714403451925,-850.95,0.00046575,30]
[324897879,1714403451936,-510.3,0.00046575,30]
[324897880,1714403451948,-1103.47,0.00046575,30]
[324897882,1714403451958,-764.98,0.00046575,30]
[324897884,1714403451972,-500.0,0.00046575,30]
[324897886,1714403451982,-183.91194194,0.00046575,30]
[324897887,1714403451992,-500.0,0.00046575,30]
[324897888,1714403452001,-500.0,0.00046575,30]
[324897889,1714403452011,-200.0,0.00046575,30]
[324897890,1714403452022,-500.0,0.00046575,30]
[324897891,1714403452031,-880.79,0.00046575,30]
[324897892,1714403452040,-500.0,0.00046575,30]
[324897893,1714403452050,-500.0,0.00046575,30]
[324897894,1714403452060,-500.0,0.00046575,30]
[324897895,1714403452070,-502.4,0.00046575,30]
[324897896,1714403452079,-500.0,0.00046575,30]
[324897897,1714403452089,-500.0,0.00046575,30]
[324897898,1714403452098,-500.0,0.00046575,30]
[324897900,1714403452108,-500.0,0.00046575,30]
[324897901,1714403452117,-541.86,0.00046575,30]
[324897903,1714403452129,-154.86062544,0.00046575,30]
[324897906,1714403452138,-500.0,0.00046575,30]
[324897907,1714403452148,-500.0,0.00046575,30]
[324897909,1714403452158,-500.0,0.00046575,30]
[324897911,1714403452167,-7970.54,0.00046575,30]
[324897913,1714403452178,-500.0,0.00046575,30]
[324897916,1714403452188,-590.14,0.00046575,30]
[324897918,1714403452198,-500.0,0.00046575,30]
[324897920,1714403452207,-500.0,0.00046575,30]
[324897922,1714403452217,-500.0,0.00046575,30]
[324897924,1714403452227,-821.44,0.00046575,30]
[324897926,1714403452236,-780.18,0.00046575,30]
[324897928,1714403452246,-720.95,0.00046575,30]
[324897930,1714403452255,-500.0,0.00046575,30]
[324897932,1714403452265,-500.0,0.00046575,30]
[324897933,1714403452275,-500.0,0.00046575,30]
[324897936,1714403452285,-500.0,0.00046575,30]
[324897938,1714403452298,-500.0,0.00046575,30]
[324897940,1714403452308,-1080.25,0.00046575,30]
[324897941,1714403452317,-500.0,0.00046575,30]
[324897943,1714403452327,-500.0,0.00046575,30]
[324897945,1714403452337,-500.0,0.00046575,30]
[324897948,1714403452347,-500.0,0.00046575,30]
[324897950,1714403452356,-500.0,0.00046575,30]
[324897951,1714403452365,-675.68,0.00046575,30]
[324897961,1714403452449,-454.03644147,0.00046575,30]
[324897963,1714403452458,-500.0,0.00046575,30]
[324897965,1714403452468,-500.0,0.00046575,30]
[324897967,1714403452477,-500.0,0.00046575,30]
[324897970,1714403452486,-500.0,0.00046575,30]
[324897972,1714403452496,-500.0,0.00046575,30]
[324897974,1714403452505,-611.97,0.00046575,30]
[324897976,1714403452514,-500.0,0.00046575,30]
[324897978,1714403452523,-505.7,0.00046575,30]
[324897980,1714403452533,-500.0,0.00046575,30]
[324897982,1714403452542,-500.0,0.00046575,30]
[324897984,1714403452551,-500.0,0.00046575,30]
[324897986,1714403452560,-815.51,0.00046575,30]
[324897988,1714403452569,-500.0,0.00046575,7]
[324897990,1714403452578,-1100.15,0.00046575,30]
[324897992,1714403452588,-500.0,0.00046575,21]
[324897994,1714403452596,-500.0,0.00046575,30]
[324897996,1714403452606,-500.0,0.00046575,30]
[324897998,1714403452615,-574.58,0.00046575,30]
[324898000,1714403452628,-500.0,0.00046575,30]
[324898002,1714403452637,-500.0,0.00046575,30]
[324898004,1714403452647,-500.0,0.00046575,30]
[324898006,1714403452658,-500.0,0.00046575,30]
[324898008,1714403452667,-500.0,0.00046575,30]
[324898010,1714403452677,-500.0,0.00046575,30]
[324898012,1714403452686,-500.0,0.00046575,30]
[324898014,1714403452695,-1146.41,0.00046575,30]
[324898016,1714403452703,-500.0,0.00046575,30]
[324898018,1714403452712,-500.0,0.00046575,30]
[324898020,1714403452721,-574.15,0.00046575,30]
[324898022,1714403452731,-500.0,0.00046575,30]
[324898024,1714403452739,-500.0,0.00046575,30]
[324898026,1714403452748,-500.0,0.00046575,30]
[324898028,1714403452759,-500.0,0.00046575,30]
[324898030,1714403452768,-500.0,0.00046575,30]
[324898032,1714403452777,-500.0,0.00046575,30]
[324898034,1714403452786,-500.0,0.00046575,30]
[324898036,1714403452795,-500.0,0.00046575,30]
[324898038,1714403452804,-500.0,0.00046575,30]
[324898040,1714403452813,-760.28,0.00046575,30]
[324898042,1714403452822,-500.0,0.00046575,30]
[324898044,1714403452831,-500.0,0.00046575,30]
[324898046,1714403452840,-849.64,0.00046575,30]
[324898048,1714403452849,-500.0,0.00046575,30]
[324898050,1714403452858,-201.07386942,0.00046575,30]
[324898052,1714403452867,-615.33,0.00046575,30]
[324898054,1714403452880,-500.0,0.00046575,30]
[324898056,1714403452890,-507.18,0.00046575,30]
[324898058,1714403452900,-500.0,0.00046575,30]
[324898060,1714403452910,-500.0,0.00046575,30]
[324898062,1714403452919,-577.24,0.00046575,30]
[324898064,1714403452928,-500.0,0.00046575,30]
[324898066,1714403452937,-500.0,0.00046575,30]
[324898068,1714403452946,-500.0,0.00046575,30]
[324898070,1714403452956,-787.88,0.00046575,30]
[324898072,1714403452967,-500.0,0.00046575,30]
[324898074,1714403452977,-500.0,0.00046575,30]
[324898076,1714403452988,-500.0,0.00046575,30]
[324898078,1714403452997,-500.0,0.00046575,30]
[324898080,1714403453007,-500.0,0.00046575,20]
[324898082,1714403453016,-500.0,0.00046575,30]
[324898084,1714403453026,-712.0,0.00046575,30]
[324898086,1714403453035,-772.27,0.00046575,30]
[324898088,1714403453044,-500.0,0.00046575,30]
[324898090,1714403453054,-500.0,0.00046575,30]
[324898092,1714403453063,-500.0,0.00046575,30]
[324898094,1714403453072,-257.82362864,0.00046575,30]
[324898095,1714403453082,-500.0,0.00046575,30]
[324898097,1714403453091,-500.0,0.00046575,30]
[324898099,1714403453102,-500.0,0.00046575,30]
[324898101,1714403453111,-500.0,0.00046575,30]
[324898104,1714403453123,-638.16,0.00046575,30]
[324898106,1714403453132,-940.88,0.00046575,30]
[324898108,1714403453141,-243.66522956,0.00046575,30]
[324898110,1714403453151,-281.31968883,0.00046575,30]
[324898112,1714403453160,-706.66,0.00046575,30]
[324898114,1714403453170,-500.0,0.00046575,30]
[324898116,1714403453180,-500.0,0.00046575,30]
[324898117,1714403453189,-500.0,0.00046575,30]
[324898119,1714403453198,-500.0,0.00046575,30]
[324898122,1714403453208,-500.0,0.00046575,30]
[324898124,1714403453217,-500.0,0.00046575,30]
[324898125,1714403453226,-500.0,0.00046575,30]
[324898128,1714403453236,-154.82968734,0.00046575,30]
[324898130,1714403453245,-500.0,0.00046575,30]
[324898132,1714403453254,-500.0,0.00046575,30]
[324898134,1714403453263,-500.0,0.00046575,30]
[324898136,1714403453272,-204.52213411,0.00046575,30]
[324898138,1714403453282,-500.0,0.00046575,30]
[324898139,1714403453291,-500.0,0.00046575,30]
[324898141,1714403453300,-500.0,0.00046575,30]
[324898143,1714403453310,-500.0,0.00046575,30]
[324898146,1714403453319,-500.0,0.00046575,30]
[324898147,1714403453328,-500.0,0.00046575,30]
[324898149,1714403453337,-161.84105143,0.00046575,30]
[324898151,1714403453347,-500.0,0.00046575,30]
[324898153,1714403453356,-500.0,0.00046575,30]
[324898156,1714403453366,-752.15,0.00046575,30]
[324898158,1714403453379,-590.87,0.00046575,30]
[324898160,1714403453389,-500.0,0.00046575,30]
[324898162,1714403453398,-987.93,0.00046575,30]
[324898164,1714403453407,-500.0,0.00046575,30]
[324898166,1714403453416,-500.0,0.00046575,30]
[324898168,1714403453425,-500.0,0.00046575,30]
[324898170,1714403453435,-582.66,0.00046575,30]
[324898172,1714403453444,-500.0,0.00046575,30]
[324898174,1714403453453,-500.0,0.00046575,30]
[324898176,1714403453461,-500.0,0.00046575,30]
[324898178,1714403453471,-627.5,0.00046575,30]
[324898179,1714403453480,-500.0,0.00046575,30]
[324898182,1714403453489,-323.25382167,0.00046575,30]
[324898183,1714403453498,-500.0,0.00046575,30]
[324898185,1714403453508,-500.0,0.00046575,30]
[324898188,1714403453517,-500.0,0.00046575,30]
[324898190,1714403453527,-484.58487953,0.00046575,30]
[324898192,1714403453536,-500.0,0.00046575,30]
[324898193,1714403453546,-500.0,0.00046575,30]
[324898195,1714403453556,-902.95,0.00046575,30]
[324898197,1714403453565,-500.0,0.00046575,30]
[324898200,1714403453574,-500.0,0.00046575,30]
[324898201,1714403453584,-500.0,0.00046575,30]
[324898203,1714403453593,-500.0,0.00046575,30]
[324898205,1714403453602,-500.0,0.00046575,30]
[324898207,1714403453611,-500.40387787,0.00046575,7]
[324898210,1714403453620,-500.0,0.00046575,30]
[324898211,1714403453630,-500.12952987,0.00046575,30]
[324898213,1714403453639,-730.68,0.00046575,30]
[324898216,1714403453648,-500.0,0.00046575,30]
[324898217,1714403453658,-500.0,0.00046575,30]
[324898219,1714403453667,-500.0,0.00046575,30]
[324898221,1714403453676,-599.07,0.00046575,30]
[324898223,1714403453685,-500.0,0.00046575,30]
[324898225,1714403453695,-572.62,0.00046575,30]
[324898227,1714403453704,-500.0,0.00046575,30]
[324898229,1714403453714,-500.0,0.00046575,30]
[324898232,1714403453724,-500.0,0.00046575,30]
[324898234,1714403453733,-446.705059,0.00046575,2]
[324898235,1714403453743,-160.0,0.00046817,6]
[324898237,1714403453752,-500.0,0.00046849,30]
[324898239,1714403453761,-500.0,0.00046849,30]
[324898241,1714403453771,-500.0,0.00046849,30]
[324898243,1714403453780,-500.0,0.00046849,30]
[324898246,1714403453790,-500.0,0.00046849,30]
[324898248,1714403453800,-500.0,0.00046849,30]
[324898249,1714403453810,-500.0,0.00046849,30]
[324898251,1714403453819,-554.38,0.00046849,30]
[324898254,1714403453829,-500.0,0.00046849,30]
[324898256,1714403453838,-151.0,0.00046849,7]
[324898258,1714403453847,-293.29513774,0.00046849,30]
[324898260,1714403453857,-500.0,0.00046849,30]
[324898261,1714403453866,-500.0,0.00046849,30]
[324898264,1714403453878,-210.85474056,0.00046849,30]
[324898273,1714403453955,-692.31,0.00046849,30]
[324898275,1714403453965,-500.0,0.00046849,30]
[324898277,1714403453979,-500.0,0.00046849,30]
[324898279,1714403453988,-500.0,0.00046849,30]
[324898281,1714403453997,-500.0,0.00046849,30]
[324898283,1714403454008,-500.0,0.00046849,30]
[324898284,1714403454019,-500.0,0.00046849,30]
[324898286,1714403454028,-500.0,0.00046849,30]
[324898289,1714403454038,-645.73,0.00046849,30]
[324898290,1714403454048,-500.0,0.00046849,30]
[324898291,1714403454057,-500.0,0.00046849,30]
[324898292,1714403454067,-562.49542159,0.00046849,30]
[324898293,1714403454076,-500.0,0.00046849,30]
[324898294,1714403454085,-509.01363689,0.00046849,30]
[324898295,1714403454094,-500.0,0.00046849,30]
[324898296,1714403454103,-500.0,0.00046849,30]
[324898297,1714403454112,-500.0,0.00046849,30]
[324898298,1714403454123,-500.0,0.00046849,30]
[324898299,1714403454132,-500.0,0.00046849,30]
[324898300,1714403454141,-500.0,0.00046849,30]
[324898301,1714403454151,-500.0,0.00046849,30]
[324898302,1714403454160,-151.0,0.00046849,7]
[324898304,1714403454170,-500.0,0.00046849,30]
[324898306,1714403454179,-249.83765739,0.00046849,30]
[324898307,1714403454188,-580.34,0.00046849,30]
[324898309,1714403454197,-609.19,0.00046849,30]
[324898310,1714403454206,-500.0,0.00046849,30]
[324898311,1714403454215,-507.15817522,0.00046849,30]
[324898312,1714403454224,-500.0,0.00046849,30]
[324898313,1714403454234,-500.0,0.00046849,30]
[324898314,1714403454243,-500.0,0.00046849,30]
[324898315,1714403454252,-698.28,0.00046849,30]
[324898316,1714403454262,-500.0,0.00046849,30]
[324898317,1714403454272,-504.82343252,0.00046849,30]
[324898318,1714403454281,-500.0,0.00046849,30]
[324898319,1714403454290,-593.74,0.00046849,30]
[324898320,1714403454300,-500.0,0.00046849,30]
[324898321,1714403454309,-517.52,0.00046849,30]
[324898322,1714403454319,-500.0,0.00046849,30]
[324898323,1714403454328,-500.0,0.00046849,30]
[324898324,1714403454337,-500.0,0.00046849,30]
[324898325,1714403454347,-500.0,0.00046849,30]
[324898326,1714403454356,-500.0,0.00046849,30]
[324898327,1714403454365,-580.52,0.00046849,30]
[324898328,1714403454377,-500.0,0.00046849,30]
[324898329,1714403454387,-500.0,0.00046849,30]
[324898330,1714403454396,-500.0,0.00046849,30]
[324898331,1714403454406,-500.0,0.00046849,30]
[324898332,1714403454415,-660.77,0.00046849,30]
[324898333,1714403454425,-500.0,0.00046849,30]
[324898334,1714403454434,-500.02,0.00046849,30]
[324898335,1714403454444,-500.0,0.00046849,30]
[324898336,1714403454454,-151.0,0.00046849,7]
[324898337,1714403454463,-500.0,0.00046849,30]
[324898338,1714403454473,-500.0,0.00046849,30]
[324898339,1714403454483,-500.0,0.00046849,30]
[324898340,1714403454492,-500.0,0.00046849,30]
[324898341,1714403454501,-500.0,0.00046849,30]
[324898342,1714403454512,-500.0,0.00046849,30]
[324898343,1714403454521,-572.38,0.00046849,30]
[324898344,1714403454530,-172.14691937,0.00046849,30]
[324898345,1714403454540,-500.0,0.00046849,14]
[324898346,1714403454549,-500.0,0.00046849,30]
[324898347,1714403454558,-594.15,0.00046849,30]
[324898348,1714403454568,-500.0,0.00046849,30]
[324898349,1714403454577,-151.512951,0.00046849,7]
[324898350,1714403454586,-500.0,0.00046849,30]
[324898351,1714403454596,-500.0,0.00046849,30]
[324898352,1714403454605,-500.0,0.00046849,30]
[324898353,1714403454614,-500.0,0.00046849,30]
[324898354,1714403454623,-500.0,0.00046849,30]
[324898356,1714403454633,-500.0,0.00046849,30]
[324898358,1714403454641,-151.0,0.00046849,7]
[324898360,1714403454650,-580.34950496,0.00046849,30]
[324898361,1714403454659,-500.0,0.00046849,30]
[324898364,1714403454669,-254.632697,0.00046849,7]
[324898365,1714403454678,-500.0,0.00046849,30]
[324898368,1714403454688,-500.0,0.00046849,30]
[324898370,1714403454698,-500.0,0.00046849,30]
[324898371,1714403454707,-957.76,0.00046849,30]
[324898373,1714403454716,-500.0,0.00046849,30]
[324898375,1714403454726,-500.0,0.00046849,30]
[324898378,1714403454735,-500.0,0.00046849,30]
[324898379,1714403454744,-881.98,0.00046849,30]
[324898381,1714403454754,-500.0,0.00046849,30]
[324898383,1714403454763,-500.0,0.00046849,30]
[324898385,1714403454772,-307.42551079,0.00046849,30]
[324898388,1714403454781,-500.0,0.00046849,30]
[324898390,1714403454792,-905.7,0.00046849,30]
[324898392,1714403454801,-500.0,0.00046849,30]
[324898394,1714403454810,-151.0,0.00046849,7]
[324898396,1714403454819,-500.0,0.00046849,30]
[324898398,1714403454828,-882.72,0.00046849,120]
[324898399,1714403454837,-500.0,0.00046849,30]
[324898402,1714403454847,-500.0,0.00046849,3]
[324898404,1714403454856,-500.0,0.00046849,30]
[324898405,1714403454866,-500.0,0.00046849,30]
[324898407,1714403454875,-523.85162725,0.00046849,30]
[324898409,1714403454885,-500.0,0.00046849,30]
[324898412,1714403454895,-500.0,0.00046849,30]
[324898413,1714403454905,-500.0,0.00046849,30]
[324898415,1714403454915,-500.0,0.00046849,30]
[324898418,1714403454925,-223.46031842,0.00046849,30]
[324898419,1714403454935,-500.0,0.00046849,30]
[324898421,1714403454944,-500.0,0.00046849,30]
[324898424,1714403454954,-500.0,0.00046849,30]
[324898426,1714403454964,-652.74,0.00046849,30]
[324898428,1714403454974,-500.0,0.00046849,30]